[Event "Early-Titled-Tuesday-Blitz-February-13-2024"]
[Site "Chess.com"]
[Date "2024.02.13"]
[Round "6"]
[White "itsdsyr"]
[Black "HaryKane"]
[Result "0-1"]
[WhiteElo "2325"]
[BlackElo "2578"]
[TimeControl "180+1"]
[EndTime "9:09:39 PST"]
[Termination "HaryKane won by checkmate"]

1. e4 {[%clk 0:03:00]} 1... g6 {[%clk 0:02:58.8]} 2. d4 {[%clk 0:02:58.8]} 2...
Bg7 {[%clk 0:02:59.4]} 3. Nf3 {[%clk 0:02:56.9]} 3... d6 {[%clk 0:02:59.6]} 4.
Be2 {[%clk 0:02:55.6]} 4... Nf6 {[%clk 0:02:59]} 5. Nc3 {[%clk 0:02:55.6]} 5...
O-O {[%clk 0:02:58.5]} 6. Bg5 {[%clk 0:02:55.3]} 6... h6 {[%clk 0:02:57.2]} 7.
Bxf6 {[%clk 0:02:54.8]} 7... Bxf6 {[%clk 0:02:57.2]} 8. O-O {[%clk 0:02:55.3]}
8... Nd7 {[%clk 0:02:55]} 9. Qd2 {[%clk 0:02:53.4]} 9... Bg7 {[%clk 0:02:54.8]}
10. Rfe1 {[%clk 0:02:53.7]} 10... c5 {[%clk 0:02:54.7]} 11. Bf1 {[%clk
0:02:52.7]} 11... cxd4 {[%clk 0:02:53.9]} 12. Nxd4 {[%clk 0:02:52.2]} 12... a6
{[%clk 0:02:50.2]} 13. a4 {[%clk 0:02:51.3]} 13... Qb6 {[%clk 0:02:44.1]} 14.
Nb3 {[%clk 0:02:44.4]} 14... Nc5 {[%clk 0:02:34.7]} 15. Bc4 {[%clk 0:02:32.8]}
15... Qb4 {[%clk 0:02:23.2]} 16. Nxc5 {[%clk 0:02:16.4]} 16... Qxc4 {[%clk
0:01:58.2]} 17. Nb3 {[%clk 0:02:07.8]} 17... Be6 {[%clk 0:01:32]} 18. Rad1
{[%clk 0:02:01.2]} 18... Rfc8 {[%clk 0:01:26.2]} 19. Re3 {[%clk 0:02:00.6]}
19... b5 {[%clk 0:01:23.6]} 20. Nd5 {[%clk 0:00:20.9]} 20... Bxd5 {[%clk
0:01:23.3]} 21. exd5 {[%clk 0:00:17.6]} 21... Qxc2 {[%clk 0:01:15.1]} 22. Qxc2
{[%clk 0:00:17.5]} 22... Rxc2 {[%clk 0:01:16]} 23. Rxe7 {[%clk 0:00:17.7]} 23...
bxa4 {[%clk 0:01:13.4]} 24. Na5 {[%clk 0:00:16.2]} 24... Bxb2 {[%clk 0:01:08.2]}
25. h4 {[%clk 0:00:12.5]} 25... a3 {[%clk 0:01:08]} 26. Nb3 {[%clk 0:00:12.6]}
26... Rb8 {[%clk 0:00:52.6]} 27. Na1 {[%clk 0:00:12.3]} 27... Bxa1 {[%clk
0:00:49.3]} 28. Rxa1 {[%clk 0:00:13.2]} 28... a2 {[%clk 0:00:50]} 29. Ree1
{[%clk 0:00:12.4]} 29... Rbb2 {[%clk 0:00:50.1]} 30. Rf1 {[%clk 0:00:11.9]}
30... Kg7 {[%clk 0:00:48.8]} 31. g3 {[%clk 0:00:11.7]} 31... Kf6 {[%clk
0:00:49]} 32. Kg2 {[%clk 0:00:12]} 32... Ke5 {[%clk 0:00:48.6]} 33. Rae1+ {[%clk
0:00:10.7]} 33... Kxd5 {[%clk 0:00:48.4]} 34. Rd1+ {[%clk 0:00:11.2]} 34... Kc5
{[%clk 0:00:48.4]} 35. Ra1 {[%clk 0:00:12.1]} 35... d5 {[%clk 0:00:48.2]} 36.
Kf3 {[%clk 0:00:11.9]} 36... a5 {[%clk 0:00:48.5]} 37. Ke3 {[%clk 0:00:12.8]}
37... a4 {[%clk 0:00:42.7]} 38. f4 {[%clk 0:00:11.3]} 38... Rb3# {[%clk
0:00:41.8]} 0-1

[Event "Early-Titled-Tuesday-Blitz-February-13-2024"]
[Site "Chess.com"]
[Date "2024.02.13"]
[Round "6"]
[White "AlexeiShirov"]
[Black "PabloZarnicki"]
[Result "1-0"]
[WhiteElo "2837"]
[BlackElo "2639"]
[TimeControl "180+1"]
[EndTime "9:09:41 PST"]
[Termination "AlexeiShirov won on time"]

1. e4 {[%clk 0:03:00.9]} 1... e5 {[%clk 0:02:57.3]} 2. Nf3 {[%clk 0:03:00.9]}
2... Nf6 {[%clk 0:02:57]} 3. Nxe5 {[%clk 0:02:59]} 3... d6 {[%clk 0:02:57.1]} 4.
Nf3 {[%clk 0:02:59.1]} 4... Nxe4 {[%clk 0:02:56.9]} 5. d4 {[%clk 0:02:59.3]}
5... d5 {[%clk 0:02:56.3]} 6. Bd3 {[%clk 0:02:59.3]} 6... Nc6 {[%clk 0:02:56]}
7. O-O {[%clk 0:02:58.6]} 7... Be7 {[%clk 0:02:55.8]} 8. Nbd2 {[%clk 0:02:52.2]}
8... Bf5 {[%clk 0:02:52.6]} 9. Re1 {[%clk 0:02:50.5]} 9... Nxd2 {[%clk 0:02:52]}
10. Qxd2 {[%clk 0:02:50.3]} 10... Bxd3 {[%clk 0:02:51.1]} 11. Qxd3 {[%clk
0:02:49.7]} 11... O-O {[%clk 0:02:51.1]} 12. Bf4 {[%clk 0:02:47.3]} 12... Bf6
{[%clk 0:02:43.2]} 13. g3 {[%clk 0:02:41.4]} 13... Qd7 {[%clk 0:02:42.7]} 14. h4
{[%clk 0:02:38.3]} 14... a6 {[%clk 0:02:41.8]} 15. Bg5 {[%clk 0:02:34.1]} 15...
Qd6 {[%clk 0:02:32.7]} 16. c3 {[%clk 0:02:29.7]} 16... h6 {[%clk 0:02:27.3]} 17.
Bxf6 {[%clk 0:02:28.8]} 17... Qxf6 {[%clk 0:02:27.2]} 18. Ne5 {[%clk 0:02:28.8]}
18... Rfe8 {[%clk 0:02:22]} 19. Nd7 {[%clk 0:02:23.4]} 19... Qd6 {[%clk
0:01:46.4]} 20. Nc5 {[%clk 0:02:22]} 20... Na5 {[%clk 0:01:06.6]} 21. b4 {[%clk
0:02:18.7]} 21... b6 {[%clk 0:01:07.1]} 22. Nxa6 {[%clk 0:02:13]} 22... Nc4
{[%clk 0:01:05.2]} 23. b5 {[%clk 0:02:12.2]} 23... c6 {[%clk 0:00:54.8]} 24. a4
{[%clk 0:02:10.8]} 24... cxb5 {[%clk 0:00:53.2]} 25. axb5 {[%clk 0:02:08.6]}
25... Rxe1+ {[%clk 0:00:45.8]} 26. Rxe1 {[%clk 0:02:07.4]} 26... Qd7 {[%clk
0:00:46.7]} 27. Nb4 {[%clk 0:02:03.8]} 27... Qxb5 {[%clk 0:00:40.1]} 28. Qf5
{[%clk 0:02:03.5]} 28... Re8 {[%clk 0:00:33.7]} 29. Rxe8+ {[%clk 0:01:59.8]}
29... Qxe8 {[%clk 0:00:33.7]} 30. Nxd5 {[%clk 0:01:58.5]} 30... Qe1+ {[%clk
0:00:31.4]} 31. Kg2 {[%clk 0:01:57.7]} 31... Nd2 {[%clk 0:00:29.9]} 32. Ne3
{[%clk 0:01:51.4]} 32... Qc1 {[%clk 0:00:19.6]} 33. c4 {[%clk 0:01:33]} 33... g6
{[%clk 0:00:17.9]} 34. Qc8+ {[%clk 0:01:30.2]} 34... Kg7 {[%clk 0:00:17.7]} 35.
Qc7 {[%clk 0:01:27.8]} 35... Qb1 {[%clk 0:00:11.1]} 36. Qe5+ {[%clk 0:01:26.9]}
36... Kh7 {[%clk 0:00:10]} 37. d5 {[%clk 0:01:21.8]} 37... Qe4+ {[%clk 0:00:08]}
38. Qxe4 {[%clk 0:01:21.8]} 38... Nxe4 {[%clk 0:00:08.9]} 39. Kf3 {[%clk
0:01:22.2]} 39... Nd6 {[%clk 0:00:09.1]} 40. g4 {[%clk 0:01:14.1]} 40... Kg7
{[%clk 0:00:08.6]} 41. g5 {[%clk 0:01:12]} 41... hxg5 {[%clk 0:00:08.9]} 42.
hxg5 {[%clk 0:01:11.1]} 42... f6 {[%clk 0:00:09.8]} 43. Kf4 {[%clk 0:01:09.2]}
43... Kf7 {[%clk 0:00:08.1]} 44. gxf6 {[%clk 0:01:08.2]} 44... Kxf6 {[%clk
0:00:08.1]} 45. Ng4+ {[%clk 0:01:07.8]} 45... Ke7 {[%clk 0:00:05.2]} 46. Ne5
{[%clk 0:01:07.7]} 1-0

[Event "Early-Titled-Tuesday-Blitz-February-13-2024"]
[Site "Chess.com"]
[Date "2024.02.13"]
[Round "6"]
[White "sharkarton"]
[Black "chipmunknau"]
[Result "0-1"]
[WhiteElo "2541"]
[BlackElo "2725"]
[TimeControl "180+1"]
[EndTime "9:09:41 PST"]
[Termination "chipmunknau won on time"]

1. e4 {[%clk 0:02:58.7]} 1... c5 {[%clk 0:02:54.7]} 2. Nf3 {[%clk 0:02:58.1]}
2... d6 {[%clk 0:02:55.2]} 3. d4 {[%clk 0:02:58.1]} 3... cxd4 {[%clk 0:02:56.1]}
4. Nxd4 {[%clk 0:02:58.2]} 4... Nf6 {[%clk 0:02:56.6]} 5. Nc3 {[%clk 0:02:58.6]}
5... g6 {[%clk 0:02:57.2]} 6. Be3 {[%clk 0:02:58.7]} 6... Bg7 {[%clk 0:02:57.6]}
7. f3 {[%clk 0:02:59.4]} 7... O-O {[%clk 0:02:57.6]} 8. Qd2 {[%clk 0:03:00.1]}
8... Nc6 {[%clk 0:02:56.8]} 9. O-O-O {[%clk 0:03:00.7]} 9... Nxd4 {[%clk
0:02:56.8]} 10. Bxd4 {[%clk 0:02:58.7]} 10... Be6 {[%clk 0:02:57.1]} 11. Kb1
{[%clk 0:02:40.1]} 11... Qc7 {[%clk 0:02:56.8]} 12. g4 {[%clk 0:02:31.7]} 12...
Rfc8 {[%clk 0:02:56.9]} 13. h4 {[%clk 0:02:22]} 13... Qa5 {[%clk 0:02:56.4]} 14.
a3 {[%clk 0:02:16.7]} 14... Rab8 {[%clk 0:02:51.8]} 15. h5 {[%clk 0:02:04.8]}
15... b5 {[%clk 0:02:51.4]} 16. Qg5 {[%clk 0:02:04.5]} 16... d5 {[%clk
0:02:35.3]} 17. exd5 {[%clk 0:01:36.3]} 17... b4 {[%clk 0:02:33.9]} 18. axb4
{[%clk 0:01:08.1]} 18... Rxb4 {[%clk 0:02:07.2]} 19. hxg6 {[%clk 0:00:38.2]}
19... hxg6 {[%clk 0:01:22.5]} 20. f4 {[%clk 0:00:29]} 20... Ne4 {[%clk
0:01:04.3]} 21. Nxe4 {[%clk 0:00:19.2]} 21... Bxd4 {[%clk 0:01:03.8]} 22. c3
{[%clk 0:00:08]} 22... Rxc3 {[%clk 0:00:44]} 23. Rxd4 {[%clk 0:00:08.3]} 23...
Rc1+ {[%clk 0:00:33.2]} 24. Kxc1 {[%clk 0:00:07.5]} 24... Qa1+ {[%clk
0:00:33.8]} 25. Kd2 {[%clk 0:00:06.4]} 25... Qxb2+ {[%clk 0:00:32.9]} 26. Ke1
{[%clk 0:00:03.2]} 26... Qxd4 {[%clk 0:00:27.7]} 27. Be2 {[%clk 0:00:01.6]}
27... Qxe4 {[%clk 0:00:23.1]} 28. Qh6 {[%clk 0:00:01.2]} 28... Rb1+ {[%clk
0:00:22.2]} 29. Kf2 {[%clk 0:00:01.6]} 29... Rxh1 {[%clk 0:00:22.1]} 0-1

[Event "Early-Titled-Tuesday-Blitz-February-13-2024"]
[Site "Chess.com"]
[Date "2024.02.13"]
[Round "6"]
[White "krzyzan94"]
[Black "sergoy"]
[Result "1/2-1/2"]
[WhiteElo "2797"]
[BlackElo "2966"]
[TimeControl "180+1"]
[EndTime "9:09:43 PST"]
[Termination "Game drawn by repetition"]

1. Nf3 {[%clk 0:03:00.9]} 1... d5 {[%clk 0:03:00]} 2. g3 {[%clk 0:03:01.8]} 2...
g6 {[%clk 0:02:59.8]} 3. Bg2 {[%clk 0:03:02.4]} 3... Bg7 {[%clk 0:03:00.4]} 4.
c4 {[%clk 0:03:02.5]} 4... c6 {[%clk 0:03:00.2]} 5. O-O {[%clk 0:03:02.5]} 5...
e5 {[%clk 0:03:00.5]} 6. cxd5 {[%clk 0:03:02.7]} 6... cxd5 {[%clk 0:03:00.4]} 7.
d4 {[%clk 0:03:03.2]} 7... e4 {[%clk 0:03:00.1]} 8. Ne1 {[%clk 0:03:00.4]} 8...
Ne7 {[%clk 0:03:00.4]} 9. Nc3 {[%clk 0:03:00.6]} 9... Nbc6 {[%clk 0:03:00.7]}
10. Nc2 {[%clk 0:03:00.5]} 10... h5 {[%clk 0:02:58.1]} 11. f3 {[%clk 0:02:57.7]}
11... h4 {[%clk 0:02:50.8]} 12. fxe4 {[%clk 0:02:57.9]} 12... dxe4 {[%clk
0:02:37.3]} 13. Nxe4 {[%clk 0:02:58.6]} 13... hxg3 {[%clk 0:02:34.4]} 14. hxg3
{[%clk 0:02:57.9]} 14... Bh3 {[%clk 0:02:26.2]} 15. Bg5 {[%clk 0:02:50.2]} 15...
Bxg2 {[%clk 0:02:19.7]} 16. Kxg2 {[%clk 0:02:35]} 16... Qd5 {[%clk 0:02:19.6]}
17. Rf4 {[%clk 0:02:35.7]} 17... Nf5 {[%clk 0:02:08.4]} 18. Qd3 {[%clk
0:02:30.4]} 18... f6 {[%clk 0:02:05.7]} 19. Qf3 {[%clk 0:02:28.1]} 19... O-O-O
{[%clk 0:01:35.7]} 20. Nxf6 {[%clk 0:02:21.4]} 20... Qc4 {[%clk 0:01:04.6]} 21.
Ne3 {[%clk 0:02:08.3]} 21... Nxe3+ {[%clk 0:00:52.6]} 22. Qxe3 {[%clk
0:02:09.2]} 22... Bxf6 {[%clk 0:00:45.1]} 23. Bxf6 {[%clk 0:02:10.1]} 23... Rde8
{[%clk 0:00:45.3]} 24. Be5 {[%clk 0:02:08.2]} 24... Qe6 {[%clk 0:00:41.4]} 25.
Rg1 {[%clk 0:02:07.3]} 25... Qh3+ {[%clk 0:00:39.6]} 26. Kf2 {[%clk 0:02:07.7]}
26... g5 {[%clk 0:00:31.9]} 27. Rf6 {[%clk 0:02:06.8]} 27... Re7 {[%clk
0:00:17.6]} 28. Qe4 {[%clk 0:02:01.6]} 28... Nxe5 {[%clk 0:00:11.5]} 29. dxe5
{[%clk 0:02:00.8]} 29... Kb8 {[%clk 0:00:10.7]} 30. e6 {[%clk 0:01:58.9]} 30...
Rhe8 {[%clk 0:00:10.3]} 31. Qe5+ {[%clk 0:01:52.8]} 31... Ka8 {[%clk 0:00:10.2]}
32. Rc1 {[%clk 0:01:51.9]} 32... Qh2+ {[%clk 0:00:10.3]} 33. Ke3 {[%clk
0:01:52.1]} 33... a6 {[%clk 0:00:08.1]} 34. Rc7 {[%clk 0:01:50.9]} 34... Qg1+
{[%clk 0:00:07.8]} 35. Ke4 {[%clk 0:01:16.8]} 35... Qg2+ {[%clk 0:00:07.9]} 36.
Ke3 {[%clk 0:01:17]} 36... Qg1+ {[%clk 0:00:08.2]} 37. Ke4 {[%clk 0:01:05.3]}
37... Qg2+ {[%clk 0:00:08.1]} 38. Kd4 {[%clk 0:01:00.5]} 38... Qg1+ {[%clk
0:00:07.9]} 39. Ke4 {[%clk 0:00:35.7]} 1/2-1/2

[Event "Early-Titled-Tuesday-Blitz-February-13-2024"]
[Site "Chess.com"]
[Date "2024.02.13"]
[Round "6"]
[White "Kostukov_Alex"]
[Black "DvaHrasta"]
[Result "0-1"]
[WhiteElo "2253"]
[BlackElo "2493"]
[TimeControl "180+1"]
[EndTime "9:09:43 PST"]
[Termination "DvaHrasta won on time"]

1. g3 {[%clk 0:03:00.9]} 1... d5 {[%clk 0:02:59.5]} 2. Bg2 {[%clk 0:03:00.9]}
2... c5 {[%clk 0:02:59.6]} 3. d3 {[%clk 0:03:01.3]} 3... Nc6 {[%clk 0:02:59.5]}
4. e4 {[%clk 0:03:01.7]} 4... dxe4 {[%clk 0:02:58.4]} 5. dxe4 {[%clk 0:03:02.6]}
5... Qxd1+ {[%clk 0:02:57.6]} 6. Kxd1 {[%clk 0:03:03.5]} 6... Bg4+ {[%clk
0:02:57.2]} 7. f3 {[%clk 0:03:03.6]} 7... O-O-O+ {[%clk 0:02:56.2]} 8. Nd2
{[%clk 0:03:03.1]} 8... Bh5 {[%clk 0:02:53.8]} 9. c3 {[%clk 0:02:59.1]} 9... e5
{[%clk 0:02:50]} 10. g4 {[%clk 0:02:57.7]} 10... Bg6 {[%clk 0:02:49.4]} 11. h4
{[%clk 0:02:58.6]} 11... h5 {[%clk 0:02:47.3]} 12. g5 {[%clk 0:02:57.8]} 12...
f5 {[%clk 0:02:45.2]} 13. Bh3 {[%clk 0:02:34.5]} 13... Nge7 {[%clk 0:02:42.9]}
14. Ne2 {[%clk 0:02:13.2]} 14... Kc7 {[%clk 0:02:39.7]} 15. Ke1 {[%clk
0:01:33.9]} 15... f4 {[%clk 0:02:30.9]} 16. a3 {[%clk 0:01:20.4]} 16... Bf7
{[%clk 0:02:29.4]} 17. b4 {[%clk 0:01:09.6]} 17... Ng6 {[%clk 0:02:27.3]} 18.
Bf1 {[%clk 0:01:04.7]} 18... Be7 {[%clk 0:02:15.9]} 19. Bb2 {[%clk 0:00:55]}
19... Rd3 {[%clk 0:02:09.5]} 20. Nc1 {[%clk 0:00:51.2]} 20... Re3+ {[%clk
0:02:08.2]} 21. Kd1 {[%clk 0:00:23.7]} 21... Rd8 {[%clk 0:02:07]} 22. Kc2 {[%clk
0:00:23.7]} 22... a6 {[%clk 0:01:53.8]} 23. Rh2 {[%clk 0:00:16.2]} 23... b5
{[%clk 0:01:40.6]} 24. bxc5 {[%clk 0:00:14.9]} 24... Bxc5 {[%clk 0:01:36.1]} 25.
Ncb3 {[%clk 0:00:15.5]} 25... Bb6 {[%clk 0:01:32.1]} 26. a4 {[%clk 0:00:15.9]}
26... b4 {[%clk 0:01:28]} 27. Nc4 {[%clk 0:00:14]} 27... Rxf3 {[%clk 0:01:15.7]}
28. Nxb6 {[%clk 0:00:11.2]} 28... Kxb6 {[%clk 0:01:15.6]} 29. a5+ {[%clk
0:00:12.1]} 29... Ka7 {[%clk 0:01:10.5]} 30. Nc5 {[%clk 0:00:12.4]} 30... Rc8
{[%clk 0:00:53.9]} 31. Nd7 {[%clk 0:00:10.2]} 31... bxc3 {[%clk 0:00:47.6]} 32.
Nb6 {[%clk 0:00:08.9]} 32... Nd4+ {[%clk 0:00:42.9]} 33. Kb1 {[%clk 0:00:05.3]}
33... Rxf1+ {[%clk 0:00:38.8]} 34. Bc1 {[%clk 0:00:02.2]} 34... Rc5 {[%clk
0:00:34.2]} 0-1

[Event "Early-Titled-Tuesday-Blitz-February-13-2024"]
[Site "Chess.com"]
[Date "2024.02.13"]
[Round "6"]
[White "invisible_s0ul"]
[Black "Chessdude1987"]
[Result "0-1"]
[WhiteElo "2203"]
[BlackElo "2376"]
[TimeControl "180+1"]
[EndTime "9:09:46 PST"]
[Termination "Chessdude1987 won by resignation"]

1. e4 {[%clk 0:03:00.9]} 1... e6 {[%clk 0:03:00.1]} 2. d4 {[%clk 0:03:00.4]}
2... d5 {[%clk 0:03:00.3]} 3. Nc3 {[%clk 0:03:01]} 3... Nf6 {[%clk 0:02:59.8]}
4. e5 {[%clk 0:03:00.7]} 4... Nfd7 {[%clk 0:03:00.1]} 5. f4 {[%clk 0:03:01.4]}
5... c5 {[%clk 0:03:00.6]} 6. Nf3 {[%clk 0:03:02.1]} 6... Nc6 {[%clk 0:03:01]}
7. Be3 {[%clk 0:03:02.4]} 7... a6 {[%clk 0:03:00.9]} 8. Qd2 {[%clk 0:02:58.1]}
8... Qb6 {[%clk 0:03:01]} 9. Na4 {[%clk 0:02:54.6]} 9... Qb4 {[%clk 0:03:00.7]}
10. Nxc5 {[%clk 0:02:47.1]} 10... Nxc5 {[%clk 0:02:53.4]} 11. dxc5 {[%clk
0:02:05.8]} 11... Qxb2 {[%clk 0:02:51.2]} 12. Rd1 {[%clk 0:01:51.5]} 12... Qa3
{[%clk 0:02:42.3]} 13. Qf2 {[%clk 0:01:35.5]} 13... Qxa2 {[%clk 0:02:34.9]} 14.
Bd3 {[%clk 0:01:34.9]} 14... Nb4 {[%clk 0:02:34.5]} 15. O-O {[%clk 0:01:27.3]}
15... Nxd3 {[%clk 0:02:34.4]} 16. Rxd3 {[%clk 0:01:26.3]} 16... Bd7 {[%clk
0:02:33.1]} 17. Rb3 {[%clk 0:01:13.3]} 17... Bb5 {[%clk 0:02:28.1]} 18. Rfb1
{[%clk 0:01:09.5]} 18... Qa5 {[%clk 0:02:20.6]} 19. f5 {[%clk 0:00:58.3]} 19...
exf5 {[%clk 0:02:19.6]} 20. Nd4 {[%clk 0:00:57.3]} 20... Bxc5 {[%clk 0:02:18.8]}
21. Nxf5 {[%clk 0:00:55.4]} 21... Bxe3 {[%clk 0:02:18]} 22. Nd6+ {[%clk
0:00:46.8]} 22... Kd7 {[%clk 0:01:44.1]} 23. Rxe3 {[%clk 0:00:38.6]} 23... Rhf8
{[%clk 0:01:33]} 24. Nxb7 {[%clk 0:00:30.7]} 24... Qb6 {[%clk 0:01:22.1]} 25.
Nd6 {[%clk 0:00:30.5]} 25... g6 {[%clk 0:01:11.4]} 26. c4 {[%clk 0:00:28.9]}
26... dxc4 {[%clk 0:01:09]} 27. Nxc4 {[%clk 0:00:26.9]} 27... Qd4 {[%clk
0:01:02.8]} 28. Nb2 {[%clk 0:00:07.9]} 28... Kc7 {[%clk 0:00:49.3]} 29. Rd1
{[%clk 0:00:08.2]} 29... Qb4 {[%clk 0:00:44.2]} 30. Qc2+ {[%clk 0:00:08.1]}
30... Kb7 {[%clk 0:00:41.3]} 31. Nd3 {[%clk 0:00:07.5]} 31... Bxd3 {[%clk
0:00:35.3]} 32. Rexd3 {[%clk 0:00:07.7]} 32... Qb6+ {[%clk 0:00:34.3]} 33. Kh1
{[%clk 0:00:07.5]} 33... Rac8 {[%clk 0:00:31.6]} 34. Qf2 {[%clk 0:00:07.8]}
34... Qxf2 {[%clk 0:00:30.5]} 35. Rd7+ {[%clk 0:00:07.8]} 35... Rc7 {[%clk
0:00:27.9]} 0-1

[Event "Early-Titled-Tuesday-Blitz-February-13-2024"]
[Site "Chess.com"]
[Date "2024.02.13"]
[Round "6"]
[White "Pertinhez76"]
[Black "Gzucaritas"]
[Result "0-1"]
[WhiteElo "2155"]
[BlackElo "2086"]
[TimeControl "180+1"]
[EndTime "9:09:47 PST"]
[Termination "Gzucaritas won by checkmate"]

1. e4 {[%clk 0:02:54]} 1... e6 {[%clk 0:02:59.3]} 2. d4 {[%clk 0:02:51.7]} 2...
d5 {[%clk 0:02:59.4]} 3. e5 {[%clk 0:02:51.1]} 3... c5 {[%clk 0:02:58.6]} 4. c3
{[%clk 0:02:51.2]} 4... Nc6 {[%clk 0:02:59.1]} 5. Nf3 {[%clk 0:02:51.8]} 5...
Nh6 {[%clk 0:02:59.1]} 6. Be2 {[%clk 0:02:48.4]} 6... Nf5 {[%clk 0:02:56.4]} 7.
O-O {[%clk 0:02:43.4]} 7... h6 {[%clk 0:02:55.4]} 8. Re1 {[%clk 0:02:35.6]} 8...
Be7 {[%clk 0:02:39]} 9. g4 {[%clk 0:02:33.2]} 9... Nh4 {[%clk 0:02:36.9]} 10.
Nxh4 {[%clk 0:02:33.8]} 10... Bxh4 {[%clk 0:02:36.4]} 11. Be3 {[%clk 0:02:27]}
11... cxd4 {[%clk 0:02:18.5]} 12. cxd4 {[%clk 0:02:26.5]} 12... O-O {[%clk
0:02:16]} 13. Nc3 {[%clk 0:02:26.5]} 13... a6 {[%clk 0:02:12.9]} 14. Bd3 {[%clk
0:02:22.5]} 14... f6 {[%clk 0:02:00.3]} 15. f4 {[%clk 0:02:04.5]} 15... Bxe1
{[%clk 0:01:50]} 16. Qxe1 {[%clk 0:02:05.4]} 16... fxe5 {[%clk 0:01:46.3]} 17.
fxe5 {[%clk 0:02:05.2]} 17... Bd7 {[%clk 0:01:39.6]} 18. Rd1 {[%clk 0:01:50.4]}
18... Qe7 {[%clk 0:01:37.6]} 19. Rd2 {[%clk 0:01:47.1]} 19... Rf3 {[%clk
0:01:25.2]} 20. Rg2 {[%clk 0:01:45.7]} 20... Raf8 {[%clk 0:01:23.4]} 21. Bf2
{[%clk 0:01:29.6]} 21... Rxd3 {[%clk 0:01:18.6]} 22. Ne2 {[%clk 0:01:12.7]}
22... Qg5 {[%clk 0:01:07.5]} 23. h4 {[%clk 0:01:01.9]} 23... Qd2 {[%clk
0:01:06.1]} 24. g5 {[%clk 0:01:01.3]} 24... Qxe1+ {[%clk 0:01:03.6]} 25. Bxe1
{[%clk 0:01:02.2]} 25... Rd1 {[%clk 0:01:03.3]} 26. Kh2 {[%clk 0:01:02.5]} 26...
Rxe1 {[%clk 0:01:01.9]} 27. gxh6 {[%clk 0:01:03]} 27... Rf7 {[%clk 0:00:56.8]}
28. Ng3 {[%clk 0:01:03.2]} 28... Nxd4 {[%clk 0:00:54.1]} 29. Nh5 {[%clk
0:00:51]} 29... Nf3+ {[%clk 0:00:52.9]} 30. Kg3 {[%clk 0:00:49.9]} 30... Rxe5
{[%clk 0:00:31.6]} 31. Nxg7 {[%clk 0:00:48.3]} 31... Kh7 {[%clk 0:00:30.3]} 32.
Kg4 {[%clk 0:00:38.2]} 32... Kxh6 {[%clk 0:00:25.9]} 33. Nh5 {[%clk 0:00:32.5]}
33... Rxh5 {[%clk 0:00:24.9]} 34. Kh3 {[%clk 0:00:31.4]} 34... e5+ {[%clk
0:00:24.3]} 35. Kg3 {[%clk 0:00:31]} 35... Rhf5 {[%clk 0:00:20.3]} 36. Kf2
{[%clk 0:00:27.3]} 36... Nxh4+ {[%clk 0:00:19.7]} 37. Ke2 {[%clk 0:00:26.9]}
37... Nxg2 {[%clk 0:00:20.6]} 38. a4 {[%clk 0:00:24.9]} 38... Rf2+ {[%clk
0:00:20.9]} 39. Kd3 {[%clk 0:00:24.4]} 39... R7f3# {[%clk 0:00:20.2]} 0-1

[Event "Early-Titled-Tuesday-Blitz-February-13-2024"]
[Site "Chess.com"]
[Date "2024.02.13"]
[Round "6"]
[White "Kostya0705"]
[Black "ElephantChessGenius"]
[Result "1-0"]
[WhiteElo "2618"]
[BlackElo "2302"]
[TimeControl "180+1"]
[EndTime "9:09:48 PST"]
[Termination "Kostya0705 won by checkmate"]

1. e4 {[%clk 0:02:58.4]} 1... c5 {[%clk 0:03:00.1]} 2. Nf3 {[%clk 0:02:58]} 2...
Nc6 {[%clk 0:02:59.5]} 3. Nc3 {[%clk 0:02:57.5]} 3... g6 {[%clk 0:02:58.7]} 4.
d4 {[%clk 0:02:57.1]} 4... cxd4 {[%clk 0:02:58.2]} 5. Nxd4 {[%clk 0:02:58]} 5...
Bg7 {[%clk 0:02:58.6]} 6. Be3 {[%clk 0:02:58.5]} 6... Nf6 {[%clk 0:02:59]} 7.
Bc4 {[%clk 0:02:57.9]} 7... O-O {[%clk 0:02:58.9]} 8. Bb3 {[%clk 0:02:57.6]}
8... Re8 {[%clk 0:02:59.3]} 9. f3 {[%clk 0:02:57]} 9... d5 {[%clk 0:02:59.7]}
10. exd5 {[%clk 0:02:55.6]} 10... Nb4 {[%clk 0:02:59.2]} 11. Nde2 {[%clk
0:02:55]} 11... e6 {[%clk 0:02:57.6]} 12. Qd2 {[%clk 0:02:49.3]} 12... Nbxd5
{[%clk 0:02:53.6]} 13. Nxd5 {[%clk 0:02:48.4]} 13... exd5 {[%clk 0:02:50.5]} 14.
O-O-O {[%clk 0:02:46.4]} 14... a5 {[%clk 0:02:40.4]} 15. a4 {[%clk 0:02:41.4]}
15... Bd7 {[%clk 0:02:29.4]} 16. Bd4 {[%clk 0:02:36]} 16... Bc6 {[%clk
0:02:27.2]} 17. Kb1 {[%clk 0:02:34.6]} 17... Qd7 {[%clk 0:02:22.6]} 18. h4
{[%clk 0:02:33.9]} 18... Bxa4 {[%clk 0:02:21]} 19. Bxa4 {[%clk 0:02:29.6]} 19...
Qxa4 {[%clk 0:02:20]} 20. h5 {[%clk 0:02:29.7]} 20... Qc4 {[%clk 0:02:13.5]} 21.
Nc3 {[%clk 0:02:17.5]} 21... b5 {[%clk 0:02:02.8]} 22. hxg6 {[%clk 0:02:06.2]}
22... hxg6 {[%clk 0:02:00.4]} 23. Bxf6 {[%clk 0:01:48.5]} 23... Bxf6 {[%clk
0:01:58.4]} 24. Nxd5 {[%clk 0:01:49.4]} 24... Bg7 {[%clk 0:01:17]} 25. Qg5
{[%clk 0:01:46.3]} 25... Re2 {[%clk 0:01:09.5]} 26. Rd2 {[%clk 0:01:00.8]} 26...
Rxd2 {[%clk 0:00:45.4]} 27. Qxd2 {[%clk 0:00:56.7]} 27... Re8 {[%clk 0:00:34.7]}
28. Qg5 {[%clk 0:00:23.2]} 28... Qd4 {[%clk 0:00:16.6]} 29. c3 {[%clk
0:00:19.5]} 29... Qd3+ {[%clk 0:00:15]} 30. Ka1 {[%clk 0:00:19.8]} 30... Qf5
{[%clk 0:00:05.7]} 31. Ne7+ {[%clk 0:00:18.4]} 31... Rxe7 {[%clk 0:00:05]} 32.
Qxe7 {[%clk 0:00:19.3]} 32... Bf6 {[%clk 0:00:05.1]} 33. Qe8+ {[%clk 0:00:19.1]}
33... Kg7 {[%clk 0:00:05.4]} 34. Qh8# {[%clk 0:00:19.7]} 1-0